bitfinex-derivatives/quotes_SOLF0:USTF0_20241009
["timestamp","ask_amount","ask_price","bid_price","bid_amount"]
[1728486791849,14.3608,142.11,142.08,3.5212]
[1728486792155,10.84,142.11,142.06,5.28]
[1728486792456,10.84,142.09,142.07,3.5215]
[1728486792646,6.6492,142.12,142.07,3.5215]
[1728486792647,10.84,142.1,142.07,3.5215]
[1728486792953,14.3609,142.1,142.08,3.5213]
[1728486793143,10.84,142.1,142.06,16.12]
[1728486793540,3.5208,142.11,142.06,16.12]
[1728486793739,14.3608,142.11,142.06,16.12]
[1728486793950,10.84,142.11,142.07,10.84]
[1728486794948,10.84,142.11,142.09,3.521]
[1728486795454,3.5209,142.1,142.06,16.12]
[1728486795642,3.5209,142.1,142.08,3.5212]
[1728486796047,10.84,142.11,142.06,16.12]
[1728486796254,14.3607,142.11,142.09,3.5211]
[1728486805767,10.84,142.11,142.1,3.5209]
[1728486805964,10.84,142.11,142.06,16.12]
[1728486806766,12.2092,142.12,142.07,10.84]
[1728486806959,12.2092,142.12,142.08,3.5213]
[1728486806960,15.7297,142.12,142.08,3.5213]
[1728486807160,14.3605,142.12,142.07,10.84]
[1728486807566,14.48522,142.13,142.11,3.5206]
[1728486808073,14.48522,142.13,142.1,3.5208]
[1728486809774,3.64522,142.13,142.09,10.84]
[1728486809975,0.12502,142.13,142.11,3.5206]
[1728486810283,0.12502,142.13,142.1,10.84]
[1728486810477,0.12502,142.13,142.12,3.5204]
[1728486815277,0.12502,142.13,142.09,5.28]
[1728486815482,14.3607,142.11,142.08,3.5212]
[1728486815680,10.84,142.11,142.06,10.84]
[1728486816099,3.521,142.1,142.07,3.5215]
[1728486816377,3.521,142.1,142.06,10.84]
[1728486816884,0.12502,142.13,142.09,10.84]
[1728486817083,0.12502,142.13,142.12,10.84]
[1728486817471,0.12502,142.13,142.12,14.3604]
[1728486818184,0.12502,142.13,142.12,3.5204]
[1728486821483,0.12502,142.13,142.12,14.3604]
[1728486824086,0.12502,142.13,142.12,3.5204]
[1728486824788,0.12502,142.13,142.12,14.3604]
[1728486825690,0.12502,142.13,142.12,3.5204]
[1728486825892,0.12502,142.13,142.12,14.3604]
[1728486829501,0.12502,142.13,142.12,3.5204]
[1728486830386,0.12502,142.13,142.12,14.3604]
[1728486833895,0.12518,142.15,142.12,14.3604]
[1728486833896,0.12518,142.15,142.12,10.84]
[1728486834089,0.12518,142.15,142.14,14.3599]
[1728486834398,0.12518,142.15,142.14,19.6399]
[1728486837892,3.64382,142.19,142.14,16.12]
[1728486838105,0.12502,142.19,142.18,10.84]
[1728486838305,1.47272,142.25,142.18,16.12]
[1728486838492,1.47272,142.25,142.22,10.84]
[1728486839299,0.12502,142.25,142.21,10.84]
[1728486839503,0.12502,142.25,142.23,10.84]
[1728486839999,3.64232,142.25,142.23,10.84]
[1728486840200,3.64232,142.25,142.22,10.84]
[1728486840503,0.12502,142.25,142.21,10.84]
[1728486840712,10.96502,142.25,142.21,10.84]
[1728486841001,3.5177,142.23,142.21,10.84]
[1728486841205,10.96502,142.25,142.21,10.84]
[1728486841609,3.5176,142.24,142.21,14.3581]
[1728486841815,10.96502,142.25,142.21,14.3581]
[1728486842105,10.96502,142.25,142.21,10.84]
[1728486842303,0.12502,142.25,142.22,10.84]
[1728486842604,0.12502,142.25,142.23,16.12]
[1728486842807,0.12502,142.25,142.24,3.5174]
[1728486843006,0.12502,142.25,142.23,16.12]
[1728486843501,0.12502,142.25,142.24,3.5174]
[1728486844901,0.12502,142.25,142.23,16.12]
[1728486845209,0.12502,142.25,142.23,19.6375]
[1728486846435,0.12502,142.25,142.23,16.12]
[1728486846611,0.12502,142.25,142.24,3.5174]
[1728486847602,0.12502,142.25,142.23,16.12]
[1728486847806,0.12502,142.25,142.23,19.6376]
[1728486849110,0.12502,142.25,142.23,16.12]
[1728486849812,0.12502,142.25,142.23,8.7976]
[1728486850008,0.12502,142.25,142.23,16.12]
[1728486850204,0.12502,142.25,142.24,10.84]
[1728486850416,0.12502,142.25,142.24,14.3574]
[1728486850610,3.5162,142.29,142.24,10.84]
[1728486850809,3.5162,142.29,142.26,10.84]
[1728486851110,3.5162,142.29,142.26,16.12]
[1728486851312,10.84,142.3,142.26,5.28]
[1728486851714,10.84,142.27,142.24,5.28]
[1728486852210,1.3808,142.29,142.24,5.28]
[1728486852211,1.3808,142.29,142.24,3.5173]
[1728486852415,10.84,142.28,142.24,3.5173]
[1728486852815,3.5169,142.27,142.24,3.5173]
[1728486854914,14.3566,142.28,142.25,3.517]
[1728486855103,14.3566,142.28,142.24,10.84]
[1728486855922,14.3566,142.28,142.25,3.5171]
[1728486856111,10.84,142.28,142.25,3.5171]
[1728486856413,10.84,142.27,142.19,0.12502]
[1728486856615,10.84,142.27,142.22,10.84]
[1728486856807,1.3808,142.29,142.21,10.84]
[1728486856808,10.84,142.25,142.21,10.84]
[1728486857023,10.84,142.27,142.24,3.5174]
[1728486857213,10.84,142.27,142.23,10.84]
[1728486857214,14.3567,142.27,142.23,10.84]
[1728486857416,10.84,142.27,142.23,10.84]
[1728486858115,3.5168,142.27,142.24,3.5173]
[1728486858521,12.2088,142.28,142.24,3.5173]
[1728486858723,3.5167,142.27,142.24,3.5173]
[1728486858943,1.3688,142.28,142.26,3.5168]
[1728486859217,4.8971,142.29,142.26,10.84]
[1728486859413,4.8971,142.29,142.26,14.3568]
[1728486860625,3.5161,142.3,142.27,3.5165]
[1728486861420,3.5162,142.29,142.27,3.5165]
[1728486861614,3.5162,142.29,142.25,5.28]
[1728486861615,10.84,142.29,142.25,5.28]
[1728486861823,10.84,142.29,142.25,16.12]
[1728486862226,14.3561,142.3,142.26,3.5169]
[1728486862421,10.84,142.3,142.26,3.5169]
[1728486863024,3.5163,142.29,142.26,14.3569]
[1728486863918,3.5163,142.29,142.27,3.5166]
[1728486864150,10.84,142.3,142.27,3.5166]
[1728486864422,14.3561,142.3,142.27,3.5166]
[1728486864815,3.5162,142.29,142.27,3.5166]
[1728486865226,10.84,142.3,142.27,3.5166]
[1728486865416,14.3561,142.3,142.27,3.5166]
[1728486866829,10.84,142.3,142.25,5.28]
[1728486867122,10.84,142.3,142.25,16.12]
[1728486867323,10.84,142.3,142.26,10.84]
[1728486867620,14.3561,142.3,142.27,3.5166]
[1728486868733,14.3561,142.3,142.28,3.5164]
[1728486869028,10.84,142.3,142.28,3.5164]
[1728486869920,0.12502,142.31,142.27,10.84]
[1728486870221,0.12502,142.31,142.29,10.84]
[1728486870426,0.12502,142.31,142.3,3.5159]
[1728486870823,0.12502,142.31,142.29,3.5161]
[1728486871127,0.12502,142.31,142.29,10.84]
[1728486871330,0.12502,142.31,142.3,10.84]
[1728486871633,0.12502,142.31,142.3,14.3559]
[1728486872826,0.12502,142.37,142.3,10.84]
[1728486873026,0.12502,142.37,142.26,2.7727]
[1728486873027,0.12502,142.37,142.35,14.3545]
[1728486873231,0.12502,142.37,142.36,10.84]
[1728486873636,0.12502,142.37,142.36,14.3545]
[1728486875824,0.12502,142.37,142.36,19.6345]
[1728486878036,3.5131,142.42,142.39,3.5135]
[1728486878334,1.48092,142.43,142.41,10.84]
[1728486878535,1.48092,142.43,142.41,14.3532]
[1728486878778,1.48092,142.43,142.41,10.84]
[1728486878931,1.48092,142.43,142.42,10.84]
[1728486879136,0.12502,142.43,142.42,14.353]
[1728486879533,0.12502,142.43,142.42,19.713]
[1728486880337,0.12502,142.43,142.42,16.2]
[1728486880536,0.12502,142.43,142.42,5.36]
[1728486881230,0.12502,142.43,142.42,8.873]
[1728486881628,0.12502,142.43,142.42,5.36]
[1728486883124,0.12502,142.43,142.41,5.36]
[1728486883829,0.12502,142.43,142.4,20.3734]
[1728486884031,0.12502,142.43,142.41,5.36]
[1728486884230,0.12502,142.43,142.41,8.8731]
[1728486885529,0.12502,142.43,142.41,5.36]
[1728486886339,0.12502,142.43,142.41,8.8731]
[1728486886938,0.12502,142.43,142.42,5.36]
[1728486887145,0.12502,142.43,142.42,22.22]
[1728486887339,0.12502,142.43,142.42,25.733]
[1728486888037,0.12502,142.43,142.41,3.5131]
[1728486888233,0.12502,142.43,142.42,5.36]
[1728486888537,0.12502,142.43,142.42,8.873]
[1728486888939,0.12502,142.43,142.42,25.733]
[1728486890635,0.12518,142.44,142.43,3.5127]
[1728486890835,0.12518,142.44,142.43,20.3727]
[1728486894554,3.5118,142.47,142.43,16.86]
[1728486895149,3.5116,142.48,142.43,16.86]
[1728486895556,3.5116,142.48,142.45,3.5121]
[1728486895850,3.5116,142.48,142.45,20.3721]
[1728486896848,0.12502,142.49,142.45,16.86]
[1728486897059,3.63632,142.49,142.46,8.872]
[1728486897461,0.12502,142.49,142.46,5.36]
[1728486897656,0.12502,142.49,142.46,8.8723]
[1728486897657,3.63672,142.49,142.46,8.8723]
[1728486898659,3.63672,142.49,142.45,5.36]
[1728486898660,0.12502,142.49,142.45,5.36]
[1728486899254,3.5122,142.47,142.45,5.36]
[1728486899454,0.12502,142.49,142.45,5.36]
[1728486899763,0.12502,142.49,142.45,22.22]
[1728486900253,0.12502,142.49,142.48,3.5118]
[1728486900451,0.12502,142.49,142.48,19.6518]
[1728486902255,0.12502,142.49,142.48,14.2918]
[1728486902458,0.12502,142.49,142.48,5.36]
[1728486902658,0.12502,142.49,142.48,3.5118]
[1728486902865,0.12502,142.49,142.48,14.2918]
[1728486903066,0.12502,142.49,142.48,19.6518]
[1728486904553,0.12502,142.49,142.46,5.36]
[1728486904755,3.5126,142.45,142.43,5.36]
[1728486904956,10.78,142.47,142.43,5.36]
[1728486905160,10.78,142.47,142.43,8.8729]
[1728486905355,3.5125,142.46,142.43,8.8729]
[1728486905659,10.78,142.47,142.43,8.8729]
[1728486905850,2.7467,142.48,142.43,16.14]
[1728486906065,0.12502,142.49,142.47,10.78]
[1728486906360,0.12502,142.49,142.48,3.5118]
[1728486906961,0.12502,142.49,142.46,3.5122]
[1728486907262,0.12502,142.49,142.46,5.36]
[1728486907561,3.5123,142.47,142.45,5.36]
[1728486908076,3.5123,142.47,142.43,5.36]
[1728486908356,3.5124,142.46,142.42,5.36]
[1728486908863,3.5121,142.47,142.42,5.36]
[1728486909167,4.118,142.48,142.42,5.36]
[1728486909363,3.5121,142.47,142.44,3.5127]
[1728486909761,4.118,142.48,142.42,5.56]
[1728486909951,3.5125,142.46,142.43,3.513]
[1728486910161,4.118,142.48,142.42,5.56]
[1728486910555,3.5123,142.47,142.42,5.56]
[1728486910760,4.118,142.48,142.41,5.56]
[1728486911194,4.118,142.48,142.42,16.87]
[1728486911757,3.5123,142.47,142.44,3.5127]
[1728486911958,3.5123,142.47,142.42,16.87]
[1728486911959,4.118,142.48,142.42,16.87]
[1728486912362,3.5124,142.46,142.43,3.5129]
[1728486912568,3.5124,142.46,142.42,16.87]
[1728486912861,4.118,142.48,142.42,16.87]
[1728486913165,4.118,142.48,142.4,22.43]
[1728486913371,4.118,142.48,142.42,3.5132]
[1728486913559,3.5128,142.45,142.42,3.5132]
[1728486913756,25.278,142.48,142.4,16.87]
[1728486913956,3.5133,142.43,142.4,3.5136]
[1728486914253,38.03,142.46,142.38,5.56]
[1728486914459,3.5132,142.43,142.39,3.5139]
[1728486914659,16.87,142.46,142.38,5.56]
[1728486914858,38.03,142.46,142.38,5.56]
[1728486915263,38.03,142.46,142.37,16.99502]
[1728486915479,38.03,142.46,142.41,3.5135]
[1728486915665,38.03,142.46,142.37,16.99502]
[1728486916168,38.03,142.46,142.41,16.87]
[1728486916169,3.5124,142.46,142.41,16.87]
[1728486916493,5.56,142.47,142.41,16.87]
[1728486916656,5.56,142.47,142.42,3.5132]
[1728486916854,3.5127,142.45,142.42,3.5132]
[1728486917768,9.678,142.48,142.41,16.87]
[1728486917962,30.838,142.48,142.41,16.87]
[1728486918265,3.513,142.44,142.41,3.5135]
[1728486918463,3.54345768,142.43,142.37,0.12502]
[1728486918657,2.7278,142.43,142.37,0.12502]
[1728486918860,6.2411,142.43,142.38,3.5141]
[1728486919163,6.2411,142.43,142.37,0.12502]
[1728486919608,16.87,142.41,142.37,0.12502]
[1728486919757,16.87,142.39,142.31,0.12502]
[1728486919970,43.59,142.39,142.31,0.12502]
[1728486920166,3.5148,142.36,142.31,0.12502]
[1728486920564,3.5148,142.36,142.32,3.5156]
[1728486921171,43.59,142.39,142.32,3.5156]
[1728486921471,16.87,142.37,142.33,3.5155]
[1728486921713,16.87,142.37,142.31,0.12502]
[1728486921974,3.515,142.36,142.32,3.5156]
[1728486922163,38.03,142.37,142.31,0.12502]
[1728486922358,3.5151,142.35,142.31,0.12502]
[1728486922564,3.5151,142.35,142.31,3.64082]
[1728486922874,3.5151,142.35,142.26,2.873]
[1728486922875,25.93793444,142.35,142.26,5.56]
[1728486923068,9.0751,142.35,142.31,3.5159]
[1728486923789,3.5153,142.34,142.31,3.5159]
[1728486924073,2.7908,142.36,142.29,22.43]
[1728486924369,2.7908,142.36,142.35,3.5151]
[1728486924573,1.3438,142.36,142.31,16.87]
[1728486926168,1.3438,142.36,142.29,22.43]
[1728486926370,4.8586,142.36,142.29,22.43]
[1728486926570,1.3438,142.36,142.29,22.43]
[1728486926772,0.12502,142.37,142.29,22.43]
[1728486927161,0.12502,142.37,142.34,3.5152]
[1728486927470,0.12502,142.37,142.32,5.56]
[1728486928568,0.12502,142.37,142.36,3.5148]
[1728486931172,0.12502,142.37,142.33,16.87]
[1728486931373,0.12502,142.37,142.36,3.5148]
[1728486932074,0.12502,142.37,142.36,25.9648]
[1728486932368,1.45102,142.43,142.42,3.5133]
[1728486932369,0.12502,142.43,142.42,3.5133]
[1728486932595,0.12502,142.49,142.42,5.58]
[1728486933167,3.512,142.48,142.44,3.5126]
[1728486933372,16.99502,142.49,142.42,5.58]
[1728486933773,0.12502,142.49,142.42,5.58]
[1728486934074,0.12502,142.49,142.42,22.45]
[1728486934284,0.12502,142.49,142.48,3.5118]
[1728486935871,0.12502,142.49,142.45,2.7324]
[1728486936073,0.12502,142.49,142.47,3.5119]
[1728486936474,0.12502,142.49,142.42,16.87]
[1728486936670,0.12502,142.49,142.43,5.56]
[1728486937270,0.12502,142.49,142.46,3.5123]
[1728486937775,0.12502,142.55,142.48,16.87]
[1728486938181,0.12502,142.55,142.49,16.87]
[1728486938677,0.12502,142.55,142.49,20.37416922]
[1728486939385,0.12502,142.55,142.54,3.5104]
[1728486940876,0.12502,142.55,142.53,5.68]
[1728486941177,0.12502,142.55,142.53,9.1904]
[1728486941381,0.12502,142.55,142.53,5.68]
[1728486941583,0.12502,142.55,142.51,5.68]
[1728486941896,3.63512,142.55,142.51,5.68]
[1728486942077,0.12502,142.55,142.51,5.68]
[1728486942480,3.63522,142.55,142.52,3.5107]
[1728486942685,0.12502,142.55,142.51,5.68]
[1728486943096,0.12502,142.55,142.48,18.275]
[1728486943281,16.99502,142.55,142.49,5.68]
[1728486943480,16.87,142.53,142.42,75.86]
[1728486943685,3.5115,142.5,142.47,3.5121]
[1728486943888,3.5115,142.5,142.45,5.68]
[1728486944080,1.4436,142.54,142.52,3.5108]
[1728486944285,0.12502,142.55,142.5,16.87]
[1728486944494,0.12502,142.55,142.49,5.68]
[1728486944495,0.12502,142.55,142.52,16.87]
[1728486944683,1.326,142.59,142.54,3.5104]
[1728486944684,3.5093,142.59,142.54,3.5104]
[1728486944994,0.12502,142.61,142.52,16.87]
[1728486945190,3.5093,142.59,142.54,3.5102]
[1728486945388,3.5093,142.59,142.52,16.87]
[1728486946185,0.12502,142.61,142.52,16.87]
[1728486946790,0.12502,142.61,142.52,26.97]
[1728486946985,3.5094,142.58,142.55,3.51]
[1728486947190,0.12502,142.61,142.55,5.68]
[1728486948893,0.12502,142.61,142.56,3.5098]
[1728486949388,0.12502,142.61,142.55,5.68]
[1728486950388,3.5098,142.57,142.54,3.5103]
[1728486950587,3.5098,142.57,142.53,5.68]
[1728486950989,0.12502,142.61,142.54,3.5102]
[1728486951290,3.5097,142.57,142.52,5.68]
[1728486952186,3.5095,142.58,142.55,3.51]
[1728486952389,5.68,142.6,142.52,5.68]
[1728486952689,3.5103,142.55,142.52,3.5107]
[1728486952890,3.5103,142.55,142.52,9.1907]
[1728486953088,1.3503,142.59,142.52,5.68]
[1728486953391,3.51,142.56,142.53,3.5106]
[1728486956993,26.97,142.58,142.5,1.341]
[1728486957199,3.5106,142.54,142.51,9.27785034]
[1728486957387,49.3635,142.58,142.49,0.12502]
[1728486957591,49.3635,142.58,142.49,3.63652]
[1728486957592,26.97,142.55,142.49,3.63652]
[1728486957791,26.97,142.53,142.49,0.12502]
[1728486957993,30.48407454,142.53,142.49,0.12502]
[1728486958195,3.5114,142.5,142.49,0.12502]
[1728486958597,3.51407454,142.53,142.5,3.5113]
[1728486958598,3.5107,142.53,142.5,3.5113]
[1728486958995,5.68,142.54,142.49,0.12502]
[1728486959201,1.4121,142.56,142.5,3.5112]
[1728486959497,1.4121,142.56,142.49,0.12502]
[1728486960289,3.511,142.52,142.49,3.63652]
[1728486962093,3.5114,142.5,142.49,0.12502]
[1728486962302,5.68,142.53,142.49,0.12502]
[1728486962908,7.0921,142.56,142.49,0.12502]
[1728486963098,3.5108,142.53,142.5,9.28001775]
[1728486963293,3.5108,142.53,142.5,3.5112]
[1728486963502,7.0921,142.56,142.49,0.12502]
[1728486963708,4.9221,142.56,142.53,3.5105]
[1728486963910,7.0941,142.57,142.5,5.68]
[1728486964204,8.5311,142.57,142.5,5.68]
[1728486965006,3.5104,142.54,142.51,3.511]
[1728486965312,3.42471344,142.54,142.49,0.12502]
[1728486965508,56.5811,142.57,142.49,3.63652]
[1728486965509,3.5111,142.52,142.49,3.63652]
[1728486965707,3.55953915,142.54,142.49,3.63652]
[1728486966018,56.5811,142.57,142.49,3.63652]
[1728486966201,8.5311,142.57,142.52,3.5108]
[1728486966503,8.5311,142.57,142.49,0.12502]
[1728486966914,2.8511,142.57,142.5,5.76359143]
[1728486967105,1.437,142.57,142.51,5.76359143]
[1728486967404,1.3135,142.58,142.51,5.68]
[1728486967809,1.3135,142.58,142.52,5.76196014]
[1728486968005,3.5098,142.57,142.53,3.5104]
[1728486968311,1.3135,142.58,142.51,5.68]
[1728486968508,3.5099,142.56,142.52,5.76442828]
[1728486968701,3.5099,142.56,142.51,5.68]
[1728486969103,3.5099,142.56,142.53,3.5106]
[1728486969302,3.5097,142.57,142.51,5.68]
[1728486969711,3.5097,142.57,142.54,3.5104]
[1728486970208,3.5106,142.54,142.51,3.511]
[1728486970410,3.5106,142.54,142.49,1.43582]
[1728486970411,16.86,142.57,142.49,0.12502]
[1728486970603,5.88,142.56,142.49,0.12502]
[1728486970804,3.5106,142.54,142.51,3.5111]
[1728486971308,3.509,142.6,142.57,3.5095]
[1728486971520,0.12502,142.61,142.52,25.5144]
[1728486972005,3.5093,142.59,142.55,3.5101]
[1728486972509,3.5095,142.58,142.53,3.5105]
[1728486972706,16.86,142.6,142.52,1.4067]
[1728486973205,16.86,142.58,142.52,1.4067]
[1728486973610,3.5097,142.57,142.54,3.5104]
[1728486974015,16.86,142.58,142.5,5.88]
[1728486974309,3.51,142.56,142.53,3.5105]
[1728486974712,16.86,142.56,142.49,6.00502]
[1728486974907,16.86,142.54,142.49,0.12502]
[1728486975248,3.5107,142.53,142.49,3.63662]
[1728486975415,3.5107,142.53,142.49,0.12502]
[1728486975804,3.5107,142.53,142.49,3.63642]
[1728486976006,3.5107,142.53,142.49,0.12502]
[1728486976308,3.5107,142.53,142.5,3.5113]
[1728486976504,5.88,142.54,142.49,0.12502]
[1728486976713,10.0031,142.57,142.49,0.12502]
[1728486977007,13.5129,142.57,142.54,3.5103]
[1728486977208,10.0031,142.57,142.5,22.74]
[1728486977404,10.0031,142.57,142.53,3.5105]
[1728486977809,3.51,142.56,142.53,3.5105]
[1728486978610,12.1489,142.57,142.5,5.88]
[1728486978909,12.1489,142.57,142.49,0.12502]
[1728486979116,12.1489,142.57,142.5,5.88]
[1728486979306,8.6391,142.57,142.5,22.74]
[1728486979508,8.6391,142.57,142.5,5.88]
[1728486980221,3.51,142.56,142.53,3.5105]
[1728486981918,3.5103,142.55,142.52,3.5108]
[1728486982115,8.6391,142.57,142.5,5.88]
[1728486982512,3.5105,142.54,142.51,3.5109]
[1728486982910,3.5108,142.53,142.5,3.5113]
[1728486983413,16.86,142.54,142.5,3.5113]
[1728486983647,16.86,142.52,142.49,0.12502]
[1728486984315,16.86,142.52,142.49,3.63662]
[1728486984817,5.88,142.53,142.51,3.5111]
[1728486985318,9.3906,142.53,142.49,0.12502]
[1728486985622,9.3906,142.53,142.5,3.5112]
[1728486986320,3.5103,142.55,142.51,3.511]
[1728486986516,25.4991,142.57,142.51,3.511]
[1728486987118,3.5101,142.56,142.51,3.511]
[1728486987316,25.4991,142.57,142.51,3.511]
[1728486987929,3.5105,142.54,142.51,3.511]
[1728486988218,3.5464426,142.54,142.49,3.63642]
[1728486988429,3.5108,142.53,142.49,0.12502]
[1728486988616,37.94,142.55,142.49,0.12502]
[1728486989423,3.5114,142.5,142.49,0.12502]
[1728486990939,3.5105,142.54,142.49,0.12502]
[1728486991116,22.74,142.55,142.49,0.12502]
[1728486991512,3.5107,142.53,142.49,0.12502]
[1728486991708,20.43096848,142.53,142.49,0.12502]
[1728486991913,16.86,142.52,142.49,0.12502]
[1728486992116,2.7591,142.57,142.49,0.12502]
[1728486992117,22.74,142.54,142.49,0.12502]
[1728486992418,22.74,142.54,142.5,3.5111]
[1728486992616,22.74,142.54,142.49,0.12502]
[1728486992617,5.88,142.54,142.49,0.12502]
[1728486992822,5.88,142.54,142.5,3.5112]
[1728486993522,16.86,142.53,142.49,0.12502]
[1728486993721,16.86,142.51,142.49,0.12502]
[1728486993923,3.5114,142.5,142.49,0.12502]
[1728486994318,43.82,142.5,142.43,0.12502]
[1728486994618,16.86,142.48,142.43,0.12502]
[1728486994813,16.86,142.48,142.43,3.63792]
[1728486995018,3.5125,142.46,142.43,3.63792]
[1728486995522,3.5121,142.47,142.44,3.5128]
[1728486995826,16.86,142.48,142.43,0.12502]
[1728486997522,3.5125,142.46,142.43,3.63812]
[1728486998036,3.5128,142.44,142.43,0.12502]
[1728486998326,3.5128,142.44,142.4,3.5137]
[1728486998327,16.86,142.44,142.37,0.12502]
[1728486998527,3.514,142.4,142.38,5.47287468]
[1728486998727,3.514,142.4,142.37,0.12502]
[1728486999721,9.4534,142.42,142.38,3.5142]
[1728486999923,5.94,142.42,142.38,3.5142]
[1728487000429,9.4534,142.42,142.38,3.5142]
[1728487000730,5.94,142.42,142.38,3.5142]
[1728487001027,5.94,142.42,142.37,0.12502]
[1728487001028,16.86,142.41,142.37,0.12502]
[1728487001533,20.3736,142.41,142.37,3.63942]
[1728487001730,20.3736,142.41,142.37,0.12502]
[1728487001731,3.5136,142.41,142.37,0.12502]
[1728487002325,3.5136,142.41,142.38,3.5142]
[1728487004140,5.94,142.43,142.37,0.12502]
[1728487005034,9.4532,142.43,142.39,3.5139]
[1728487006030,3.5132,142.43,142.39,3.5139]
[1728487006236,3.5132,142.43,142.4,3.5138]
[1728487006834,22.8,142.44,142.37,0.12502]
[1728487007338,16.86,142.42,142.37,0.12502]
[1728487007539,3.5138,142.4,142.37,3.63952]
[1728487008234,22.8,142.44,142.37,0.12502]
[1728487008842,3.5135,142.42,142.39,3.5139]
[1728487009540,3.5132,142.43,142.4,3.5137]
[1728487009747,22.8,142.44,142.37,0.12502]
[1728487010146,3.5135,142.42,142.37,0.12502]
[1728487010537,3.5135,142.42,142.39,3.514]
[1728487010932,16.86,142.42,142.37,0.12502]
[1728487011137,16.86,142.38,142.37,0.12502]
[1728487011944,20.3743,142.38,142.37,0.12502]
[1728487012144,16.86,142.38,142.37,0.12502]
[1728487012346,16.86,142.4,142.37,0.12502]
[1728487012539,1.3945,142.41,142.37,0.12502]
[1728487012741,22.8,142.42,142.39,3.514]
[1728487013540,26.3134,142.42,142.39,3.514]
[1728487013946,26.3134,142.42,142.37,0.12502]
[1728487013947,22.8,142.42,142.38,3.5142]
[1728487014241,3.5138,142.41,142.38,3.5142]
[1728487014444,16.86,142.39,142.31,1.51142]
[1728487014634,21.08,142.41,142.31,1.51142]
[1728487014635,16.86,142.36,142.31,1.51142]
[1728487015141,16.86,142.36,142.33,3.5154]
[1728487015142,20.3748,142.36,142.33,3.5154]
[1728487015339,16.86,142.36,142.31,0.12502]
[1728487015539,16.86,142.36,142.32,3.5157]
[1728487015746,20.375,142.36,142.31,0.12502]
[1728487016552,20.375,142.36,142.33,3.5154]
[1728487017747,3.5154,142.34,142.32,3.5158]
[1728487018054,16.86,142.36,142.32,3.5158]
[1728487018346,3.5152,142.35,142.32,3.5158]
[1728487018542,16.86,142.36,142.31,0.12502]
[1728487018741,3.5155,142.34,142.31,3.64092]
[1728487019043,3.5155,142.34,142.31,0.12502]
[1728487019446,16.86,142.36,142.31,0.12502]
[1728487019447,3.5152,142.35,142.33,3.5155]
[1728487019650,3.5152,142.35,142.31,0.12502]
[1728487019947,3.5152,142.35,142.32,3.5157]
[1728487020150,3.5152,142.35,142.31,0.12502]
[1728487020348,16.86,142.36,142.31,0.12502]
[1728487020544,3.5154,142.34,142.32,3.5158]
[1728487021447,3.5152,142.35,142.32,3.5158]
[1728487021752,16.86,142.36,142.32,3.5158]